fUST/lending_fUST_20250618
["ID","MTS","AMOUNT","RATE_DAILY","PERIOD"]
[366339479,1750197047212,-291.863371,0.00025,7]
[366339480,1750197047222,-151.0,0.00025,7]
[366339481,1750197047231,-151.0,0.00025,7]
[366339482,1750197047241,-151.0,0.00025,7]
[366339483,1750197047250,-2000.0,0.00025,2]
[366339485,1750197047259,-2000.0,0.00025,2]
[366339487,1750197047269,-151.0,0.00025,7]
[366339489,1750197047279,-151.0,0.00025,7]
[366339491,1750197047289,-160.0,0.00025,3]
[366339493,1750197047299,-160.0,0.00025,5]
[366339495,1750197047308,-6750.48999672,0.00025,30]
[366339497,1750197047318,-184.41869322,0.00025,2]
[366339499,1750197047331,-151.0,0.00025,7]
[366339501,1750197047343,-150.0,0.00025,5]
[366339503,1750197047352,-1967.230492,0.00025,5]
[366339505,1750197047362,-2000.0,0.00025,2]
[366339507,1750197047371,-313.8,0.00025,7]
[366339509,1750197047380,-189.0,0.00025,7]
[366339511,1750197047389,-315.45388124,0.00025,30]
[366339513,1750197047400,-202.654175,0.00025,2]
[366339515,1750197047409,-151.0,0.00025,7]
[366339517,1750197047419,-151.0,0.00025,7]
[366339519,1750197047431,-181.0,0.00025,120]
[366339521,1750197047440,-160.0,0.00025,5]
[366339523,1750197047449,-480.8,0.00025002,60]
[366339525,1750197047458,-500.0,0.00025004,60]
[366339527,1750197047467,-302.8,0.00025006,60]
[366339529,1750197047476,-1492.3,0.00025006,60]
[366339531,1750197047486,-3734.20931213,0.00025007,2]
[366339533,1750197047495,-900.0,0.00025008,2]
[366339534,1750197047504,-7566.91,0.0002501,60]
[366339536,1750197047513,-401.0,0.00025013,120]
[366339538,1750197047523,-599.17,0.00025013,60]
[366339541,1750197047533,-2554.0,0.00025018,60]
[366339542,1750197047542,-13711.5927898,0.00025022,2]
[366339544,1750197047551,-3033.36577887,0.00025022,2]
[366339546,1750197047561,-3734.20931213,0.00025022,2]
[366339548,1750197047570,-200.0,0.00025027,60]
[366339549,1750197047579,-10000.0,0.00025032,60]
[366339550,1750197047589,-10000.0,0.00025032,60]
[366339551,1750197047598,-10000.0,0.00025032,60]
[366339552,1750197047607,-10000.0,0.00025032,60]
[366339553,1750197047617,-200.0,0.00025032,120]
[366339554,1750197047627,-151.0,0.00025032,7]
[366339555,1750197047636,-151.0,0.00025032,7]
[366339556,1750197047645,-151.0,0.00025032,7]
[366339557,1750197047655,-151.0,0.00025032,7]
[366339558,1750197047664,-152.307985,0.00025032,7]
[366339559,1750197047673,-737.440444,0.00025032,7]
[366339560,1750197047682,-737.440444,0.00025032,7]
[366339561,1750197047691,-151.0,0.00025032,7]
[366339562,1750197047700,-152.492134,0.00025032,7]
[366339563,1750197047710,-151.0,0.00025032,7]
[366339564,1750197047719,-151.0,0.00025032,7]
[366339565,1750197047728,-151.0,0.00025032,7]
[366339566,1750197047737,-151.0,0.00025032,7]
[366339567,1750197047746,-151.0,0.00025032,7]
[366339568,1750197047755,-151.0,0.00025032,7]
[366339569,1750197047765,-151.0,0.00025032,7]
[366339570,1750197047774,-151.0,0.00025032,7]
[366339571,1750197047783,-375.983588,0.00025032,7]
[366339572,1750197047793,-375.983588,0.00025032,7]
[366339573,1750197047803,-568.0,0.00025033,60]
[366339574,1750197047812,-3734.20931213,0.00025037,2]
[366339575,1750197047821,-215.0738,0.00025038,2]
[366339576,1750197047831,-500.0,0.0002504,3]
[366339577,1750197047840,-3734.20931213,0.00025052,2]
[366339578,1750197047849,-13711.5927898,0.00025057,2]
[366339579,1750197047859,-3033.36577887,0.00025057,2]
[366339580,1750197047868,-4844.0,0.00025059,7]
[366339581,1750197047877,-500.0,0.0002506,3]
[366339582,1750197047887,-3734.20931213,0.00025067,2]
[366339583,1750197047896,-500.0,0.0002507,3]
[366339584,1750197047905,-1160.1662616,0.00025072,12]
[366339585,1750197047915,-500.0,0.00025073,2]
[366339586,1750197047925,-507.4259494,0.00025073,2]
[366339587,1750197047935,-558.14,0.00025089,4]
[366339588,1750197047944,-500.0,0.0002509,3]
[366339589,1750197047954,-2000.0,0.00025117,2]
[366339590,1750197047964,-11398.95399559,0.00025119,64]
[366339591,1750197047974,-151.0,0.00025119,7]
[366339592,1750197047983,-151.0,0.00025119,7]
[366339593,1750197047993,-480.0,0.00025124,2]
[366339594,1750197048002,-200.0,0.0002515,120]
[366339595,1750197048014,-13711.5927898,0.00025153,2]
[366339596,1750197048024,-3033.36577887,0.00025153,2]
[366339597,1750197048034,-500.0,0.0002516,5]
[366339598,1750197048044,-187.070099,0.00025163,7]
[366339599,1750197048053,-187.070099,0.00025163,7]
[366339600,1750197048063,-187.070099,0.00025163,7]
[366339601,1750197048073,-187.070099,0.00025163,7]
[366339602,1750197048083,-187.070099,0.00025163,7]
[366339603,1750197048092,-187.070099,0.00025163,7]
[366339604,1750197048102,-187.070099,0.00025163,7]
[366339605,1750197048112,-187.070099,0.00025163,7]
[366339606,1750197048122,-187.070099,0.00025163,7]
[366339607,1750197048132,-187.070099,0.00025163,7]
[366339608,1750197048141,-187.070099,0.00025163,7]
[366339609,1750197048151,-187.070099,0.00025163,7]
[366339610,1750197048160,-187.070099,0.00025163,7]
[366339611,1750197048170,-187.070099,0.00025163,7]
[366339612,1750197048180,-187.070099,0.00025163,7]
[366339613,1750197048189,-187.070099,0.00025163,7]
[366339614,1750197048199,-187.070099,0.00025163,7]
[366339615,1750197048209,-187.070099,0.00025163,7]
[366339616,1750197048218,-187.070099,0.00025163,7]
[366339617,1750197048228,-187.0701,0.00025163,7]
[366339618,1750197048238,-151.0,0.00025163,7]
[366339619,1750197048247,-151.0,0.00025163,7]
[366339620,1750197048258,-151.0,0.00025163,7]
[366339621,1750197048267,-151.0,0.00025163,7]
[366339622,1750197048277,-1050.440186,0.00025163,2]
[366339623,1750197048286,-1050.440186,0.00025163,2]
[366339624,1750197048296,-1050.440186,0.00025163,2]
[366339625,1750197048305,-1050.440186,0.00025163,2]
[366339627,1750197048315,-1050.440186,0.00025163,2]
[366339628,1750197048434,-1050.440186,0.00025163,2]
[366339629,1750197048444,-1050.440186,0.00025163,2]
[366339630,1750197048454,-1050.440186,0.00025163,2]
[366339631,1750197048464,-1050.440186,0.00025163,2]
[366339632,1750197048474,-1050.440186,0.00025163,2]
[366339633,1750197048484,-151.0,0.00025163,7]
[366339634,1750197048494,-1050.440186,0.00025163,2]
[366339636,1750197048504,-151.0,0.00025163,7]
[366339638,1750197048514,-1050.440186,0.00025163,2]
[366339640,1750197048524,-151.0,0.00025163,7]
[366339642,1750197048534,-1050.440186,0.00025163,2]
[366339644,1750197048544,-151.0,0.00025163,7]
[366339646,1750197048553,-1050.440186,0.00025163,2]
[366339648,1750197048563,-151.0,0.00025163,7]
[366339649,1750197048571,-1050.440186,0.00025163,2]
[366339651,1750197048581,-151.0,0.00025163,7]
[366339653,1750197048591,-1050.440186,0.00025163,2]
[366339654,1750197048601,-151.0,0.00025163,7]
[366339655,1750197048610,-1050.440186,0.00025163,2]
[366339656,1750197048621,-151.0,0.00025163,7]
[366339657,1750197048630,-1050.440186,0.00025163,2]
[366339658,1750197048640,-232.343663,0.00025163,7]
[366339659,1750197048649,-1050.440186,0.00025163,2]
[366339660,1750197048659,-1050.440187,0.00025163,2]
[366339661,1750197048669,-151.0,0.00025163,7]
[366339662,1750197048678,-151.0,0.00025163,7]
[366339663,1750197048687,-151.0,0.00025163,7]
[366339664,1750197048696,-151.0,0.00025163,7]
[366339665,1750197048706,-151.0,0.00025163,7]
[366339666,1750197048715,-151.0,0.00025163,7]
[366339667,1750197048725,-151.0,0.00025163,7]
[366339668,1750197048735,-151.0,0.00025163,7]
[366339669,1750197048744,-151.0,0.00025163,7]
[366339670,1750197048754,-151.0,0.00025163,7]
[366339671,1750197048763,-151.0,0.00025163,7]
[366339672,1750197048773,-151.0,0.00025163,7]
[366339673,1750197048782,-151.0,0.00025163,7]
[366339674,1750197048793,-199.727866,0.00025163,7]
[366339676,1750197048803,-737.440444,0.00025163,7]
[366339678,1750197048812,-737.440444,0.00025163,7]
[366339679,1750197048822,-737.440444,0.00025163,7]
[366339680,1750197048831,-737.440444,0.00025163,7]
[366339681,1750197048842,-737.440444,0.00025163,7]
[366339682,1750197048852,-737.440444,0.00025163,7]
[366339683,1750197048862,-737.440444,0.00025163,7]
[366339684,1750197048871,-737.440444,0.00025163,7]
[366339685,1750197048881,-737.440444,0.00025163,7]
[366339686,1750197048891,-737.440444,0.00025163,7]
[366339687,1750197048902,-737.440444,0.00025163,7]
[366339688,1750197048915,-737.440444,0.00025163,7]
[366339689,1750197048925,-737.440444,0.00025163,7]
[366339690,1750197048935,-737.440444,0.00025163,7]
[366339691,1750197048944,-737.440444,0.00025163,7]
[366339692,1750197048954,-737.440444,0.00025163,7]
[366339693,1750197048964,-737.440444,0.00025163,7]
[366339694,1750197048974,-737.440449,0.00025163,7]
[366339695,1750197048983,-151.0,0.00025164,7]
[366339696,1750197048993,-151.0,0.00025164,7]
[366339697,1750197049003,-151.0,0.00025164,7]
[366339698,1750197049013,-151.0,0.00025164,7]
[366339699,1750197049023,-196.787868,0.00025164,7]
[366339700,1750197049032,-151.0,0.00025164,7]
[366339701,1750197049043,-170.456833,0.00025164,7]
[366339702,1750197049053,-151.0,0.00025164,7]
[366339703,1750197049063,-158.606027,0.00025164,7]
[366339704,1750197049073,-151.0,0.00025164,7]
[366339705,1750197049083,-151.0,0.00025164,7]
[366339706,1750197049094,-154.155679,0.00025164,7]
[366339707,1750197049104,-151.0,0.00025164,7]
[366339708,1750197049114,-151.0,0.00025164,7]
[366339709,1750197049125,-151.0,0.00025164,7]
[366339710,1750197049135,-151.0,0.00025164,7]
[366339711,1750197049145,-151.0,0.00025164,7]
[366339712,1750197049155,-151.0,0.00025164,7]
[366339713,1750197049164,-151.0,0.00025164,7]
[366339714,1750197049174,-151.0,0.00025164,7]
[366339715,1750197049183,-263.2,0.00025164,7]
[366339716,1750197049193,-152.726394,0.00025164,7]
[366339717,1750197049204,-266.869812,0.00025164,7]
[366339718,1750197049213,-151.0,0.00025164,7]
[366339719,1750197049223,-151.0,0.00025164,7]
[366339720,1750197049233,-151.0,0.00025164,7]
[366339721,1750197049243,-151.0,0.00025164,7]
[366339722,1750197049253,-151.0,0.00025164,7]
[366339723,1750197049263,-151.0,0.00025164,7]
[366339724,1750197049274,-151.0,0.00025164,7]
[366339725,1750197049284,-151.0,0.00025164,7]
[366339726,1750197049293,-151.0,0.00025164,7]
[366339727,1750197049302,-151.0,0.00025164,7]
[366339728,1750197049312,-151.0,0.00025164,7]
[366339729,1750197049322,-151.0,0.00025164,7]
[366339730,1750197049335,-151.0,0.00025164,7]
[366339731,1750197049344,-151.0,0.00025164,7]
[366339732,1750197049354,-151.0,0.00025164,7]
[366339733,1750197049364,-151.0,0.00025164,7]
[366339734,1750197049374,-243.592634,0.00025164,7]
[366339735,1750197049384,-151.0,0.00025164,7]
[366339736,1750197049394,-151.0,0.00025164,7]
[366339737,1750197049405,-151.0,0.00025164,7]
[366339738,1750197049415,-151.0,0.00025164,7]
[366339739,1750197049425,-151.0,0.00025164,7]
[366339740,1750197049435,-151.0,0.00025164,7]
[366339741,1750197049444,-151.0,0.00025164,7]
[366339742,1750197049454,-151.0,0.00025164,7]
[366339743,1750197049463,-174.946922,0.00025164,7]
[366339744,1750197049473,-151.0,0.00025164,7]
[366339745,1750197049482,-151.0,0.00025164,7]
[366339746,1750197049491,-151.0,0.00025164,7]
[366339747,1750197049500,-151.0,0.00025164,7]
[366339748,1750197049509,-151.0,0.00025164,7]
[366339749,1750197049519,-151.0,0.00025164,7]
[366339750,1750197049528,-151.0,0.00025164,7]
[366339751,1750197049537,-151.0,0.00025164,7]
[366339752,1750197049546,-254.259222,0.00025164,7]
[366339753,1750197049556,-151.0,0.00025164,7]
[366339754,1750197049565,-151.0,0.00025164,7]
[366339755,1750197049575,-151.0,0.00025164,7]
[366339756,1750197049586,-151.0,0.00025164,7]
[366339757,1750197049595,-151.0,0.00025166,7]
[366339758,1750197049605,-151.0,0.00025166,7]
[366339759,1750197049615,-151.0,0.00025166,7]
[366339760,1750197049624,-228.18172,0.00025166,7]
[366339761,1750197049634,-151.0,0.00025166,7]
[366339762,1750197049644,-151.0,0.00025166,7]
[366339763,1750197049653,-154.628164,0.00025166,7]
[366339764,1750197049663,-151.0,0.00025166,7]
[366339765,1750197049672,-151.0,0.00025166,7]
[366339766,1750197049682,-835.82910252,0.00025167,3]
[366339767,1750197049691,-151.0,0.00025167,7]
[366339768,1750197049700,-151.0,0.00025167,7]
[366339769,1750197049709,-151.0,0.00025167,7]
[366339770,1750197049719,-194.21,0.00025167,7]
[366339771,1750197049728,-153.488293,0.00025167,7]
[366339772,1750197049738,-151.0,0.00025167,7]
[366339773,1750197049747,-151.0,0.00025167,7]
[366339774,1750197049757,-151.0,0.00025167,7]
[366339776,1750197049767,-151.0,0.00025167,7]
[366339778,1750197049776,-151.0,0.00025167,7]
[366339779,1750197049786,-151.0,0.00025167,7]
[366339780,1750197049795,-240.976976,0.00025167,7]
[366339781,1750197049805,-151.0,0.00025167,7]
[366339782,1750197049814,-151.0,0.00025167,7]
[366339783,1750197049824,-151.0,0.00025167,7]
[366339784,1750197049833,-151.0,0.00025167,7]
[366339785,1750197049843,-151.0,0.00025167,7]
[366339786,1750197049852,-169.003898,0.00025167,7]
[366339788,1750197049862,-151.0,0.00025167,7]
[366339790,1750197049871,-151.0,0.00025167,7]
[366339792,1750197049880,-151.0,0.00025167,7]
[366339794,1750197049890,-151.0,0.00025167,7]
[366339796,1750197049899,-151.0,0.00025167,7]
[366339798,1750197049909,-151.0,0.00025167,7]
[366339800,1750197049918,-151.0,0.00025167,7]
[366339802,1750197049927,-151.0,0.00025167,7]
[366339804,1750197049937,-151.0,0.00025167,7]
[366339806,1750197049947,-151.0,0.00025167,7]
[366339808,1750197049957,-243.787858,0.00025167,7]
[366339811,1750197049966,-151.0,0.00025167,7]
[366339813,1750197049979,-286.952214,0.00025167,7]
[366339814,1750197049988,-286.952214,0.00025167,7]
[366339816,1750197049998,-286.952214,0.00025167,7]
[366339818,1750197050007,-286.952214,0.00025167,7]
[366339820,1750197050017,-286.952214,0.00025167,7]
[366339822,1750197050026,-286.952214,0.00025167,7]
[366339824,1750197050036,-286.952214,0.00025167,7]
[366339827,1750197050046,-286.952214,0.00025167,7]
[366339829,1750197050056,-286.952214,0.00025167,7]
[366339831,1750197050066,-286.952214,0.00025167,7]
[366339832,1750197050075,-286.952214,0.00025167,7]
[366339834,1750197050085,-286.952214,0.00025167,7]
[366339836,1750197050095,-286.952214,0.00025167,7]
[366339839,1750197050105,-286.952214,0.00025167,7]
[366339841,1750197050115,-286.952214,0.00025167,7]
[366339842,1750197050124,-286.952214,0.00025167,7]
[366339844,1750197050134,-286.952214,0.00025167,7]
[366339846,1750197050143,-286.952214,0.00025167,7]
[366339848,1750197050153,-286.952214,0.00025167,7]
[366339850,1750197050162,-286.952217,0.00025167,7]
[366339852,1750197050171,-151.0,0.00025167,7]
[366339854,1750197050180,-233.553447,0.00025167,7]
[366339856,1750197050190,-233.553447,0.00025167,7]
[366339858,1750197050199,-233.553447,0.00025167,7]
[366339860,1750197050208,-233.55345,0.00025167,7]
[366339862,1750197050217,-151.0,0.00025167,7]
[366339864,1750197050226,-151.0,0.00025167,7]
[366339866,1750197050236,-151.0,0.00025167,7]
[366339868,1750197050245,-151.0,0.00025167,7]
[366339870,1750197050255,-151.0,0.00025167,7]
[366339872,1750197050264,-151.0,0.00025167,7]
[366339874,1750197050273,-151.0,0.00025167,7]
[366339876,1750197050283,-151.0,0.00025167,7]
[366339877,1750197050292,-151.0,0.00025167,7]
[366339878,1750197050301,-260.39746,0.00025167,7]
[366339879,1750197050310,-151.0,0.00025167,7]
[366339880,1750197050319,-151.0,0.00025167,7]
[366339881,1750197050331,-186.02433,0.00025167,7]
[366339882,1750197050340,-151.0,0.00025167,7]
[366339883,1750197050350,-151.0,0.00025167,7]
[366339884,1750197050359,-151.0,0.00025167,7]
[366339885,1750197050368,-151.0,0.00025167,7]
[366339887,1750197050379,-250.562854,0.00025167,7]
[366339889,1750197050388,-151.0,0.00025167,7]
[366339891,1750197050397,-151.0,0.00025167,7]
[366339893,1750197050408,-151.0,0.00025167,7]
[366339894,1750197050418,-151.0,0.00025167,7]
[366339896,1750197050427,-151.0,0.00025167,7]
[366339898,1750197050437,-151.0,0.00025167,7]
[366339900,1750197050446,-151.0,0.00025167,7]
[366339902,1750197050456,-151.0,0.00025167,7]
[366339904,1750197050465,-151.0,0.00025167,7]
[366339906,1750197050474,-151.0,0.00025167,7]
[366339908,1750197050484,-151.0,0.00025167,7]
[366339911,1750197050494,-151.0,0.00025167,7]
[366339913,1750197050503,-255.527654,0.00025167,7]
[366339915,1750197050513,-151.0,0.00025167,7]
[366339916,1750197050522,-151.0,0.00025167,7]
[366339919,1750197050532,-151.0,0.00025167,7]
[366339921,1750197050542,-151.0,0.00025167,7]
[366339923,1750197050551,-151.0,0.00025167,7]
[366339925,1750197050560,-260.727144,0.00025167,7]
[366339926,1750197050569,-576.269218,0.00025167,2]
[366339929,1750197050578,-576.269218,0.00025167,2]
[366339931,1750197050589,-576.269218,0.00025167,2]
[366339933,1750197050599,-576.269218,0.00025167,2]
[366339935,1750197050608,-576.269218,0.00025167,2]
[366339937,1750197050617,-576.269218,0.00025167,2]
[366339939,1750197050627,-576.269218,0.00025167,2]
[366339941,1750197050636,-576.269218,0.00025167,2]
[366339943,1750197050646,-576.269218,0.00025167,2]
[366339945,1750197050655,-576.269218,0.00025167,2]
[366339947,1750197050664,-576.269218,0.00025167,2]
[366339949,1750197050673,-576.269218,0.00025167,2]
[366339950,1750197050683,-576.269218,0.00025167,2]
[366339952,1750197050692,-576.269218,0.00025167,2]
[366339954,1750197050702,-576.269218,0.00025167,2]
[366339956,1750197050711,-576.269218,0.00025167,2]
[366339958,1750197050720,-576.269218,0.00025167,2]
[366339960,1750197050729,-576.269218,0.00025167,2]
[366339962,1750197050739,-576.269218,0.00025167,2]
[366339964,1750197050748,-576.26922737,0.00025167,2]
[366339966,1750197050757,-192.949382,0.00025167,7]
[366339968,1750197050767,-151.0,0.00025167,7]
[366339970,1750197050776,-151.0,0.00025167,7]
[366339972,1750197050786,-151.0,0.00025167,7]
[366339974,1750197050795,-151.0,0.00025167,7]
[366339976,1750197050805,-208.245145,0.00025167,7]
[366339978,1750197050814,-151.0,0.00025167,7]
[366339980,1750197050823,-151.0,0.00025167,7]
[366339982,1750197050833,-151.0,0.00025167,7]
[366339984,1750197050843,-151.0,0.00025167,7]
[366339986,1750197050852,-151.0,0.00025167,7]
[366339988,1750197050862,-151.0,0.00025167,7]
[366339990,1750197050871,-151.0,0.00025167,7]
[366339992,1750197050881,-151.0,0.00025167,7]
[366339994,1750197050890,-197.457716,0.00025167,7]
[366339996,1750197050899,-151.0,0.00025167,7]
[366339998,1750197050909,-289.555183,0.00025167,7]
[366340010,1750197051012,-375.983588,0.00025167,7]
[366340012,1750197051022,-375.983588,0.00025167,7]
[366340014,1750197051032,-375.983588,0.00025167,7]
[366340016,1750197051042,-375.983588,0.00025167,7]
[366340018,1750197051052,-375.983588,0.00025167,7]
[366340020,1750197051061,-375.983588,0.00025167,7]
[366340022,1750197051071,-375.983588,0.00025167,7]
[366340024,1750197051081,-375.983588,0.00025167,7]
[366340026,1750197051090,-375.983588,0.00025167,7]
[366340028,1750197051100,-375.983588,0.00025167,7]
[366340030,1750197051110,-375.983588,0.00025167,7]
[366340032,1750197051120,-375.983588,0.00025167,7]
[366340034,1750197051130,-375.983588,0.00025167,7]
[366340036,1750197051140,-375.983588,0.00025167,7]
[366340038,1750197051149,-375.983588,0.00025167,7]
[366340040,1750197051159,-375.983588,0.00025167,7]
[366340042,1750197051169,-375.983588,0.00025167,7]
[366340044,1750197051179,-375.98359,0.00025167,7]
[366340046,1750197051188,-151.0,0.00025167,7]
[366340048,1750197051198,-2000.0,0.00025167,120]
[366340050,1750197051207,-44570.89107702,0.00025168,20]
[366340053,1750197051224,-460.0,0.00025168,20]
[366340175,1750197264145,188.870269,0.00013699,2]
[366340194,1750198026164,-2074.455,0.00019359,2]
[366340197,1750198147120,-150.0,0.000189,2]
[366340198,1750198147142,-2925.545,0.00019359,2]
[366340199,1750198147163,-280.43956735,0.00019554,2]
[366340200,1750198158107,-5000.0,0.00019359,2]
[366340201,1750198158128,-219.56043265,0.00019554,2]
[366340202,1750198158150,-188.870269,0.00020187,2]
[366340203,1750198158172,-179.859304,0.00020402,2]
[366340204,1750198158197,-648.2190561,0.00020427,2]
[366340205,1750198158220,-307.29990983,0.00020584,2]
[366340206,1750198173102,-5000.0,0.00020378,2]
[366340207,1750198173123,-6.6436,0.00020584,2]
[366340222,1750198232203,-5000.0,0.00020378,2]
[366340223,1750198232214,-192.25450417,0.00020484,2]
[366340224,1750198232224,-186.05649017,0.00020584,2]
[366340225,1750198232234,-500.0,0.00021667,2]
[366340226,1750198232243,-242.24998219,0.00021817,2]
[366340227,1750198232253,-192.25450416,0.00021817,2]
[366340228,1750198232262,-1354.70846777,0.000219,6]
[366340229,1750198232271,-6495.46663,0.00021917,2]
[366340230,1750198232281,-423.24721018,0.00021917,6]
[366340231,1750198232290,-547.3,0.00021917,6]
[366340232,1750198232300,-460.0,0.00021917,6]
[366340233,1750198232310,-460.0,0.00021917,6]
[366340234,1750198232320,-460.0,0.00021917,6]
[366340235,1750198232330,-478.12,0.00021917,6]
[366340236,1750198232339,-244.67502958,0.00021917,6]
[366340237,1750198232349,-460.0,0.00021917,6]
[366340238,1750198232358,-193.9,0.00021917,6]
[366340239,1750198232367,-460.0,0.00021917,6]
[366340240,1750198232377,-460.0,0.00021917,6]
[366340241,1750198232388,-460.0,0.00021917,6]
[366340242,1750198232398,-460.0,0.00021917,6]
[366340243,1750198232408,-460.0,0.00021917,6]
[366340244,1750198232418,-460.0,0.00021917,6]
[366340245,1750198232429,-511.83,0.00021917,6]
[366340246,1750198232440,-460.0,0.00021917,6]
[366340247,1750198232450,-460.0,0.00021917,6]
[366340248,1750198232460,-460.0,0.00021917,6]
[366340249,1750198232470,-460.0,0.00021917,6]
[366340250,1750198232481,-903.09,0.00021917,6]
[366340251,1750198232492,-617.89,0.00021917,6]
[366340252,1750198232502,-680.81,0.00021917,6]
[366340253,1750198232513,-460.0,0.00021917,6]
[366340254,1750198232524,-460.0,0.00021917,6]
[366340255,1750198232535,-460.0,0.00021917,6]
[366340256,1750198232546,-460.0,0.00021917,6]
[366340257,1750198232556,-460.0,0.00021917,6]
[366340258,1750198232566,-460.0,0.00021917,6]
[366340259,1750198232576,-460.0,0.00021917,6]
[366340260,1750198232586,-460.0,0.00021917,6]
[366340261,1750198232596,-518.73,0.00021917,6]
[366340262,1750198232606,-460.0,0.00021917,6]
[366340263,1750198232616,-460.0,0.00021917,6]
[366340264,1750198232626,-460.0,0.00021917,6]
[366340265,1750198232642,-341.36,0.00021917,6]
[366340266,1750198232652,-460.0,0.00021917,6]
[366340267,1750198232663,-460.0,0.00021917,6]
[366340268,1750198232672,-460.0,0.00021917,6]
[366340269,1750198232682,-277.26,0.00021917,6]
[366340270,1750198232692,-464.65,0.00021917,6]
[366340271,1750198232701,-460.0,0.00021917,6]
[366340272,1750198232713,-460.0,0.00021917,6]
[366340273,1750198232722,-546.66,0.00021917,6]
[366340274,1750198232732,-1080.99,0.00021917,6]
[366340275,1750198232742,-531.1,0.00021917,6]
[366340276,1750198232753,-460.0,0.00021917,6]
[366340277,1750198232763,-634.09,0.00021917,6]
[366340278,1750198232773,-460.0,0.00021917,6]
[366340279,1750198232785,-460.0,0.00021917,6]
[366340280,1750198232795,-460.0,0.00021917,6]
[366340281,1750198232805,-460.0,0.00021917,6]
[366340282,1750198232815,-460.0,0.00021917,6]
[366340283,1750198232824,-460.0,0.00021917,6]
[366340284,1750198232834,-533.36,0.00021917,6]
[366340285,1750198232844,-491.51,0.00021917,6]
[366340286,1750198232854,-460.0,0.00021917,6]
[366340287,1750198232864,-460.0,0.00021917,6]
[366340288,1750198232874,-500.0,0.00022026,2]
[366340289,1750198232887,-186.56240954,0.00022026,2]
[366340290,1750198232896,-460.0,0.00022027,6]
[366340291,1750198232905,-460.0,0.00022027,6]
[366340292,1750198232915,-460.0,0.00022027,6]
[366340293,1750198232924,-460.0,0.00022027,6]
[366340294,1750198232934,-206.07,0.00022027,6]
[366340295,1750198232943,-903.09,0.00022027,6]
[366340296,1750198232953,-617.89,0.00022027,6]
[366340297,1750198232963,-680.81,0.00022027,6]
[366340298,1750198232972,-460.0,0.00022027,6]
[366340299,1750198232982,-460.0,0.00022027,6]
[366340300,1750198232991,-522.41,0.00022027,6]
[366340301,1750198233001,-460.0,0.00022027,6]
[366340302,1750198233011,-537.03,0.00022027,6]
[366340303,1750198233020,-460.0,0.00022027,6]
[366340304,1750198233030,-460.0,0.00022027,6]
[366340305,1750198233040,-460.0,0.00022027,6]
[366340306,1750198233049,-591.93,0.00022027,6]
[366340307,1750198233059,-1080.99,0.00022027,6]
[366340308,1750198233068,-460.0,0.00022027,6]
[366340309,1750198233078,-634.09,0.00022027,6]
[366340310,1750198233088,-460.0,0.00022027,6]
[366340311,1750198233097,-460.0,0.00022027,6]
[366340312,1750198233108,-460.0,0.00022027,6]
[366340313,1750198233118,-1354.70846752,0.00022038,6]